[Event "Titled Tuesday Blitz March 07 Late 2023"]
[White "Caruana, Fabiano"]
[Black "Naroditsky, Daniel"]
[WhiteFideId "2020009"]
[BlackFideId "2026961"]
[WhiteElo "2818"]
[BlackElo "2633"]
[Result "1-0"]
[Round "10"]
[TimeControl "180+2"]
[Date "2023.03.07"]
[WhiteClock "0:00:17"]
[BlackClock "0:00:01"]

1. e4 {[%clk 0:03:00]}  c5 {[%clk 0:02:59]} 2. Nf3 {[%clk 0:03:01]}  d6 {[%clk 0:02:59]} 3. d4 {[%clk 0:03:01]}  cxd4 {[%clk 0:03:00]} 4. Nxd4 {[%clk 0:03:02]}  Nf6 {[%clk 0:03:00]} 5. Nc3 {[%clk 0:03:02]}  a6 {[%clk 0:03:01]} 6. f3 {[%clk 0:03:02]}  e5 {[%clk 0:03:02]} 7. Nb3 {[%clk 0:03:02]}  Be6 {[%clk 0:03:02]} 8. Be3 {[%clk 0:03:03]}  Be7 {[%clk 0:03:03]} 9. Qd2 {[%clk 0:03:03]}  O-O {[%clk 0:03:04]} 10. O-O-O {[%clk 0:03:03]}  a5 {[%clk 0:03:04]} 11. a4 {[%clk 0:03:02]}  Nc6 {[%clk 0:03:01]} 12. Kb1 {[%clk 0:03:03]}  Nb4 {[%clk 0:03:00]} 13. Bb5 {[%clk 0:03:00]}  Rc8 {[%clk 0:02:49]} 14. Qf2 {[%clk 0:03:00]}  d5 {[%clk 0:02:45]} 15. Bb6 {[%clk 0:02:59]}  Qd6 {[%clk 0:02:45]} 16. exd5 {[%clk 0:02:52]}  Bf5 {[%clk 0:02:43]} 17. Na1 {[%clk 0:02:44]}  Rxc3 {[%clk 0:02:36]} 18. bxc3 {[%clk 0:02:37]}  Nbxd5 {[%clk 0:02:31]} 19. Bxa5 {[%clk 0:02:28]}  Qa3 {[%clk 0:02:28]} 20. Qd2 {[%clk 0:02:03]}  b6 {[%clk 0:00:59]} 21. Qc1 {[%clk 0:01:55]}  bxa5 {[%clk 0:00:44]} 22. Qxa3 {[%clk 0:01:55]}  Bxa3 {[%clk 0:00:45]} 23. Ka2 {[%clk 0:01:55]}  Bc5 {[%clk 0:00:43]} 24. Kb2 {[%clk 0:01:54]}  Rc8 {[%clk 0:00:41]} 25. Nb3 {[%clk 0:01:32]}  Nxc3 {[%clk 0:00:36]} 26. Nxc5 {[%clk 0:01:27]}  Nxd1+ {[%clk 0:00:31]} 27. Rxd1 {[%clk 0:01:28]}  Bxc2 {[%clk 0:00:30]} 28. Rd2 {[%clk 0:01:18]}  Bf5 {[%clk 0:00:24]} 29. Nb7 {[%clk 0:01:18]}  Kf8 {[%clk 0:00:18]} 30. Nxa5 {[%clk 0:01:13]}  e4 {[%clk 0:00:18]} 31. Nc4 {[%clk 0:01:12]}  exf3 {[%clk 0:00:17]} 32. gxf3 {[%clk 0:01:12]}  Be6 {[%clk 0:00:17]} 33. Rd4 {[%clk 0:01:09]}  Rc5 {[%clk 0:00:14]} 34. Nd6 {[%clk 0:00:55]}  Ke7 {[%clk 0:00:13]} 35. Ne4 {[%clk 0:00:43]}  Rh5 {[%clk 0:00:14]} 36. Rd2 {[%clk 0:00:37]}  Nd5 {[%clk 0:00:14]} 37. Nc5 {[%clk 0:00:32]}  Nc7 {[%clk 0:00:10]} 38. Nxe6 {[%clk 0:00:32]}  Nxe6 {[%clk 0:00:03]} 39. Kc3 {[%clk 0:00:28]}  Kf6 {[%clk 0:00:02]} 40. Kb4 {[%clk 0:00:27]}  Rh4+ {[%clk 0:00:03]} 41. Bc4 {[%clk 0:00:26]}  Nd4 {[%clk 0:00:02]} 42. Kc5 {[%clk 0:00:22]}  Nf5 {[%clk 0:00:01]} 43. a5 {[%clk 0:00:21]}  Ne3 {[%clk 0:00:02]} 44. Bb3 {[%clk 0:00:16]}  Rh5+ {[%clk 0:00:01]} 45. Kb6 {[%clk 0:00:17]}  Rh6 {[%clk 0:00:01]} 46. Rd6+ {[%clk 0:00:16]}  Ke5 {[%clk 0:00:01]} 47. Rxh6 {[%clk 0:00:17]}  gxh6 {[%clk 0:00:01]} 48. a6 {[%clk 0:00:17]} 1-0


[Site "https://www.chess.com"]

[Event "Titled Tuesday Blitz March 07 Late 2023"]
[White "Bortnyk, Mykola"]
[Black "Andreikin, Dmitry"]
[WhiteFideId "14120836"]
[BlackFideId "4158814"]
[WhiteElo "2582"]
[BlackElo "2736"]
[Result "0-1"]
[Round "10"]
[TimeControl "180+2"]
[Date "2023.03.07"]
[WhiteClock "0:00:02"]
[BlackClock "0:00:04"]

1. e4 {[%clk 0:03:00]}  c5 {[%clk 0:03:00]} 2. c3 {[%clk 0:03:00]}  Nf6 {[%clk 0:02:53]} 3. e5 {[%clk 0:02:58]}  Nd5 {[%clk 0:02:53]} 4. Nf3 {[%clk 0:02:59]}  Nc6 {[%clk 0:02:52]} 5. Bc4 {[%clk 0:03:00]}  Nb6 {[%clk 0:02:51]} 6. Bb3 {[%clk 0:03:00]}  c4 {[%clk 0:02:41]} 7. Bc2 {[%clk 0:03:00]}  Qc7 {[%clk 0:02:42]} 8. O-O {[%clk 0:02:54]}  Nxe5 {[%clk 0:02:41]} 9. Nxe5 {[%clk 0:02:55]}  Qxe5 {[%clk 0:02:41]} 10. Re1 {[%clk 0:02:55]}  Qf6 {[%clk 0:02:28]} 11. d3 {[%clk 0:02:52]}  e6 {[%clk 0:02:24]} 12. a4 {[%clk 0:02:51]}  cxd3 {[%clk 0:02:16]} 13. Qxd3 {[%clk 0:02:51]}  Bc5 {[%clk 0:02:14]} 14. Re2 {[%clk 0:02:44]}  d5 {[%clk 0:02:04]} 15. b4 {[%clk 0:02:39]}  Be7 {[%clk 0:01:44]} 16. a5 {[%clk 0:02:39]}  Nd7 {[%clk 0:01:35]} 17. Nd2 {[%clk 0:02:18]}  Qg6 {[%clk 0:01:33]} 18. Qxg6 {[%clk 0:01:48]}  hxg6 {[%clk 0:01:34]} 19. c4 {[%clk 0:01:49]}  Nf6 {[%clk 0:01:25]} 20. c5 {[%clk 0:01:48]}  Bd7 {[%clk 0:01:22]} 21. Nf3 {[%clk 0:01:48]}  Bb5 {[%clk 0:01:19]} 22. Re1 {[%clk 0:01:47]}  O-O {[%clk 0:01:16]} 23. Bf4 {[%clk 0:01:41]}  Rac8 {[%clk 0:01:09]} 24. Nd4 {[%clk 0:01:41]}  Bc4 {[%clk 0:01:09]} 25. Ba4 {[%clk 0:01:33]}  Ne4 {[%clk 0:00:55]} 26. Rac1 {[%clk 0:01:34]}  g5 {[%clk 0:00:50]} 27. Be5 {[%clk 0:01:27]}  Nf6 {[%clk 0:00:43]} 28. h3 {[%clk 0:01:20]}  Rfd8 {[%clk 0:00:41]} 29. Re3 {[%clk 0:01:18]}  g4 {[%clk 0:00:37]} 30. c6 {[%clk 0:01:14]}  bxc6 {[%clk 0:00:24]} 31. Nxc6 {[%clk 0:01:15]}  Rxc6 {[%clk 0:00:24]} 32. Bxc6 {[%clk 0:01:15]}  Bxb4 {[%clk 0:00:24]} 33. Ra1 {[%clk 0:00:43]}  Bc5 {[%clk 0:00:22]} 34. Bxf6 {[%clk 0:00:36]}  gxf6 {[%clk 0:00:21]} 35. Rg3 {[%clk 0:00:36]}  f5 {[%clk 0:00:17]} 36. hxg4 {[%clk 0:00:37]}  f4 {[%clk 0:00:17]} 37. Rh3 {[%clk 0:00:37]}  Kg7 {[%clk 0:00:16]} 38. Rb1 {[%clk 0:00:33]}  Rc8 {[%clk 0:00:13]} 39. Bd7 {[%clk 0:00:31]}  Rc7 {[%clk 0:00:12]} 40. Ba4 {[%clk 0:00:30]}  Bd4 {[%clk 0:00:11]} 41. g5 {[%clk 0:00:27]}  Kg6 {[%clk 0:00:10]} 42. g3 {[%clk 0:00:24]}  Kxg5 {[%clk 0:00:04]} 43. gxf4+ {[%clk 0:00:23]}  Kf6 {[%clk 0:00:04]} 44. Bb5 {[%clk 0:00:18]}  Rc5 {[%clk 0:00:03]} 45. Bxc4 {[%clk 0:00:18]}  dxc4 {[%clk 0:00:04]} 46. Ra3 {[%clk 0:00:12]}  c3 {[%clk 0:00:04]} 47. Rc1 {[%clk 0:00:12]}  Kf5 {[%clk 0:00:04]} 48. Ra4 {[%clk 0:00:11]}  Ke4 {[%clk 0:00:04]} 49. Re1+ {[%clk 0:00:10]}  Kd5 {[%clk 0:00:03]} 50. Rd1 {[%clk 0:00:08]}  Rc4 {[%clk 0:00:03]} 51. Ra2 {[%clk 0:00:02]}  Ke4 {[%clk 0:00:03]} 52. Kg2 {[%clk 0:00:02]}  Kxf4 {[%clk 0:00:04]} 53. Kf1 {[%clk 0:00:02]}  e5 {[%clk 0:00:04]} 54. Ke2 {[%clk 0:00:03]}  f5 {[%clk 0:00:04]} 55. Kd3 {[%clk 0:00:02]}  Rb4 {[%clk 0:00:04]} 56. Rc2 {[%clk 0:00:02]}  Kf3 {[%clk 0:00:04]} 57. Rh1 {[%clk 0:00:02]}  e4# {[%clk 0:00:04]} 0-1


[Site "https://www.chess.com"]

[Event "Titled Tuesday Blitz March 07 Late 2023"]
[White "Carlsen, Magnus"]
[Black "Dardha, Daniel"]
[WhiteFideId "1503014"]
[BlackFideId "240990"]
[WhiteElo "2852"]
[BlackElo "2581"]
[Result "1-0"]
[Round "10"]
[TimeControl "180+2"]
[Date "2023.03.07"]
[WhiteClock "0:00:20"]
[BlackClock "0:00:02"]

1. e4 {[%clk 0:03:00]}  c5 {[%clk 0:02:58]} 2. Nf3 {[%clk 0:02:59]}  d6 {[%clk 0:02:58]} 3. Bc4 {[%clk 0:02:57]}  Nc6 {[%clk 0:02:54]} 4. O-O {[%clk 0:02:57]}  g6 {[%clk 0:02:54]} 5. c3 {[%clk 0:02:55]}  Nf6 {[%clk 0:02:39]} 6. d4 {[%clk 0:02:50]}  Nxe4 {[%clk 0:02:24]} 7. Qb3 {[%clk 0:02:27]}  e6 {[%clk 0:02:16]} 8. d5 {[%clk 0:02:26]}  Na5 {[%clk 0:01:50]} 9. Qa4+ {[%clk 0:02:14]}  Bd7 {[%clk 0:01:36]} 10. Bb5 {[%clk 0:02:13]}  exd5 {[%clk 0:00:54]} 11. Bxd7+ {[%clk 0:02:11]}  Qxd7 {[%clk 0:00:55]} 12. Qxa5 {[%clk 0:02:12]}  Bg7 {[%clk 0:00:53]} 13. Qa3 {[%clk 0:02:09]}  O-O {[%clk 0:00:52]} 14. Qb3 {[%clk 0:02:09]}  Qc6 {[%clk 0:00:42]} 15. Rd1 {[%clk 0:02:01]}  c4 {[%clk 0:00:42]} 16. Qc2 {[%clk 0:02:01]}  Rae8 {[%clk 0:00:42]} 17. Be3 {[%clk 0:02:01]}  Nc5 {[%clk 0:00:36]} 18. Nbd2 {[%clk 0:01:59]}  f5 {[%clk 0:00:33]} 19. Nf1 {[%clk 0:01:57]}  f4 {[%clk 0:00:32]} 20. Bd4 {[%clk 0:01:57]}  Nd3 {[%clk 0:00:30]} 21. Rxd3 {[%clk 0:01:54]}  cxd3 {[%clk 0:00:30]} 22. Qxd3 {[%clk 0:01:54]}  Qc4 {[%clk 0:00:29]} 23. Qxc4 {[%clk 0:01:40]}  dxc4 {[%clk 0:00:30]} 24. Bxa7 {[%clk 0:01:39]}  Re2 {[%clk 0:00:27]} 25. N1d2 {[%clk 0:01:38]}  g5 {[%clk 0:00:27]} 26. Kf1 {[%clk 0:01:35]}  Rfe8 {[%clk 0:00:19]} 27. Rd1 {[%clk 0:01:18]}  d5 {[%clk 0:00:14]} 28. Nxg5 {[%clk 0:01:15]}  b5 {[%clk 0:00:13]} 29. a3 {[%clk 0:01:14]}  R2e7 {[%clk 0:00:11]} 30. Bc5 {[%clk 0:01:12]}  Rc7 {[%clk 0:00:11]} 31. Bd6 {[%clk 0:01:11]}  Rd7 {[%clk 0:00:08]} 32. Bxf4 {[%clk 0:01:09]}  d4 {[%clk 0:00:09]} 33. cxd4 {[%clk 0:01:00]}  Rxd4 {[%clk 0:00:10]} 34. g3 {[%clk 0:00:59]}  Rd5 {[%clk 0:00:05]} 35. Rb1 {[%clk 0:00:57]}  Rf8 {[%clk 0:00:04]} 36. Nge4 {[%clk 0:00:56]}  Re8 {[%clk 0:00:02]} 37. Nc3 {[%clk 0:00:53]}  Rd3 {[%clk 0:00:02]} 38. Nxb5 {[%clk 0:00:52]}  Rf8 {[%clk 0:00:02]} 39. Nxc4 {[%clk 0:00:48]}  Rb3 {[%clk 0:00:02]} 40. a4 {[%clk 0:00:44]}  Rb4 {[%clk 0:00:02]} 41. b3 {[%clk 0:00:32]}  Rc8 {[%clk 0:00:02]} 42. Nba3 {[%clk 0:00:20]}  Rb7 {[%clk 0:00:02]} 43. Nd6 {[%clk 0:00:20]} 1-0


[Site "https://www.chess.com"]

[Event "Titled Tuesday Blitz March 07 Late 2023"]
[White "Bortnyk, Olexandr"]
[Black "Martinez Alcantara, Jose Eduardo"]
[WhiteFideId "14120828"]
[BlackFideId "3805662"]
[WhiteElo "2734"]
[BlackElo "2712"]
[Result "0-1"]
[Round "10"]
[TimeControl "180+2"]
[Date "2023.03.07"]
[WhiteClock "0:00:01"]
[BlackClock "0:00:08"]

1. d4 {[%clk 0:03:00]}  Nf6 {[%clk 0:03:00]} 2. Nc3 {[%clk 0:02:59]}  d5 {[%clk 0:02:59]} 3. Bf4 {[%clk 0:02:59]}  e6 {[%clk 0:02:59]} 4. Nb5 {[%clk 0:02:59]}  Bb4+ {[%clk 0:02:58]} 5. c3 {[%clk 0:02:59]}  Ba5 {[%clk 0:02:58]} 6. a4 {[%clk 0:03:00]}  a6 {[%clk 0:02:49]} 7. b4 {[%clk 0:03:00]}  Nh5 {[%clk 0:02:49]} 8. Be5 {[%clk 0:02:56]}  f6 {[%clk 0:02:26]} 9. e4 {[%clk 0:02:55]}  g6 {[%clk 0:02:26]} 10. Bg3 {[%clk 0:02:48]}  Nxg3 {[%clk 0:02:18]} 11. hxg3 {[%clk 0:02:49]}  Bb6 {[%clk 0:02:19]} 12. a5 {[%clk 0:02:43]}  axb5 {[%clk 0:02:19]} 13. axb6 {[%clk 0:02:43]}  Rxa1 {[%clk 0:02:20]} 14. Qxa1 {[%clk 0:02:43]}  c6 {[%clk 0:02:20]} 15. Bd3 {[%clk 0:02:25]}  O-O {[%clk 0:02:13]} 16. Nf3 {[%clk 0:01:51]}  Nd7 {[%clk 0:02:10]} 17. Qc1 {[%clk 0:01:22]}  dxe4 {[%clk 0:02:09]} 18. Bxe4 {[%clk 0:01:14]}  Qe7 {[%clk 0:02:09]} 19. g4 {[%clk 0:01:01]}  e5 {[%clk 0:01:46]} 20. d5 {[%clk 0:00:56]}  Nxb6 {[%clk 0:01:31]} 21. dxc6 {[%clk 0:00:37]}  bxc6 {[%clk 0:01:31]} 22. g5 {[%clk 0:00:31]}  Nd5 {[%clk 0:01:14]} 23. gxf6 {[%clk 0:00:32]}  Nxf6 {[%clk 0:01:15]} 24. Bxc6 {[%clk 0:00:30]}  Bb7 {[%clk 0:01:05]} 25. Bxb5 {[%clk 0:00:27]}  Bxf3 {[%clk 0:01:06]} 26. gxf3 {[%clk 0:00:27]}  Nh5 {[%clk 0:01:05]} 27. Qe3 {[%clk 0:00:18]}  Nf4 {[%clk 0:01:00]} 28. Qc5 {[%clk 0:00:18]}  Qf6 {[%clk 0:00:37]} 29. Bc4+ {[%clk 0:00:17]}  Kh8 {[%clk 0:00:38]} 30. Qc7 {[%clk 0:00:14]}  h5 {[%clk 0:00:38]} 31. Kd2 {[%clk 0:00:11]}  Rd8+ {[%clk 0:00:21]} 32. Kc2 {[%clk 0:00:11]}  Qf5+ {[%clk 0:00:22]} 33. Kb3 {[%clk 0:00:11]}  Rd2 {[%clk 0:00:23]} 34. Qb8+ {[%clk 0:00:05]}  Kg7 {[%clk 0:00:18]} 35. Qg8+ {[%clk 0:00:06]}  Kh6 {[%clk 0:00:16]} 36. Ka3 {[%clk 0:00:04]}  Qf6 {[%clk 0:00:08]} 37. Rg1 {[%clk 0:00:01]}  e4 {[%clk 0:00:08]} 0-1


[Site "https://www.chess.com"]

[Event "Titled Tuesday Blitz March 07 Late 2023"]
[White "Yu, Yangyi"]
[Black "Maksimovic, Bojan"]
[WhiteFideId "8603820"]
[BlackFideId "14408120"]
[WhiteElo "2783"]
[BlackElo "2468"]
[Result "0-1"]
[Round "10"]
[TimeControl "180+2"]
[Date "2023.03.07"]
[WhiteClock "0:00:07"]
[BlackClock "0:00:07"]

1. Nf3 {[%clk 0:03:00]}  Nf6 {[%clk 0:02:55]} 2. g3 {[%clk 0:03:00]}  g6 {[%clk 0:02:55]} 3. c4 {[%clk 0:03:00]}  Bg7 {[%clk 0:02:55]} 4. Bg2 {[%clk 0:03:00]}  O-O {[%clk 0:02:54]} 5. O-O {[%clk 0:03:00]}  d6 {[%clk 0:02:54]} 6. Nc3 {[%clk 0:03:00]}  e5 {[%clk 0:02:53]} 7. d3 {[%clk 0:02:59]}  Nc6 {[%clk 0:02:53]} 8. Rb1 {[%clk 0:02:59]}  a5 {[%clk 0:02:53]} 9. b3 {[%clk 0:02:59]}  h6 {[%clk 0:02:50]} 10. Bb2 {[%clk 0:02:59]}  Be6 {[%clk 0:02:47]} 11. Qd2 {[%clk 0:02:57]}  Qd7 {[%clk 0:02:47]} 12. e4 {[%clk 0:02:56]}  Bg4 {[%clk 0:02:44]} 13. Nd5 {[%clk 0:02:52]}  Bxf3 {[%clk 0:02:41]} 14. Bxf3 {[%clk 0:02:49]}  Kh7 {[%clk 0:02:33]} 15. Bg2 {[%clk 0:02:41]}  Nd4 {[%clk 0:02:00]} 16. Nxf6+ {[%clk 0:02:36]}  Bxf6 {[%clk 0:02:00]} 17. Bxd4 {[%clk 0:02:37]}  exd4 {[%clk 0:02:00]} 18. f4 {[%clk 0:02:37]}  c6 {[%clk 0:01:56]} 19. Rbe1 {[%clk 0:02:37]}  Rfe8 {[%clk 0:01:53]} 20. h4 {[%clk 0:02:34]}  a4 {[%clk 0:01:43]} 21. b4 {[%clk 0:02:34]}  a3 {[%clk 0:01:43]} 22. Kh2 {[%clk 0:02:34]}  Kg7 {[%clk 0:01:32]} 23. Qf2 {[%clk 0:02:32]}  Ra4 {[%clk 0:01:22]} 24. e5 {[%clk 0:02:29]}  dxe5 {[%clk 0:00:57]} 25. fxe5 {[%clk 0:02:29]}  Bd8 {[%clk 0:00:57]} 26. Bh3 {[%clk 0:02:28]}  Qe7 {[%clk 0:00:50]} 27. e6 {[%clk 0:02:14]}  f5 {[%clk 0:00:50]} 28. h5 {[%clk 0:02:00]}  Rxb4 {[%clk 0:00:40]} 29. Qxd4+ {[%clk 0:01:58]}  Qf6 {[%clk 0:00:34]} 30. Qd7+ {[%clk 0:01:52]}  Qe7 {[%clk 0:00:34]} 31. Qd4+ {[%clk 0:01:17]}  Qf6 {[%clk 0:00:34]} 32. Qd7+ {[%clk 0:00:59]}  Qe7 {[%clk 0:00:34]} 33. hxg6 {[%clk 0:00:50]}  Rb2+ {[%clk 0:00:33]} 34. Bg2 {[%clk 0:00:50]}  Rxa2 {[%clk 0:00:16]} 35. Qd4+ {[%clk 0:00:40]}  Qf6 {[%clk 0:00:16]} 36. Qd7+ {[%clk 0:00:28]}  Qe7 {[%clk 0:00:16]} 37. Qd4+ {[%clk 0:00:23]}  Qf6 {[%clk 0:00:17]} 38. Qc5 {[%clk 0:00:23]}  Bc7 {[%clk 0:00:07]} 39. Kh3 {[%clk 0:00:07]}  Qxg6 {[%clk 0:00:06]} 40. Qd4+ {[%clk 0:00:05]}  Kg8 {[%clk 0:00:04]} 41. Qh4 {[%clk 0:00:05]}  h5 {[%clk 0:00:03]} 42. Bf3 {[%clk 0:00:03]}  Qg4+ {[%clk 0:00:02]} 43. Bxg4 {[%clk 0:00:04]}  fxg4+ {[%clk 0:00:02]} 44. Qxg4+ {[%clk 0:00:04]}  hxg4+ {[%clk 0:00:03]} 45. Kxg4 {[%clk 0:00:05]}  Rg2 {[%clk 0:00:02]} 46. Rf7 {[%clk 0:00:05]}  Rxg3+ {[%clk 0:00:03]} 47. Kf5 {[%clk 0:00:05]}  Rg7 {[%clk 0:00:04]} 48. Kf6 {[%clk 0:00:02]}  Bd8+ {[%clk 0:00:04]} 49. Kf5 {[%clk 0:00:03]}  Rxf7+ {[%clk 0:00:04]} 50. exf7+ {[%clk 0:00:04]}  Kxf7 {[%clk 0:00:05]} 51. Ra1 {[%clk 0:00:04]}  Be7 {[%clk 0:00:05]} 52. d4 {[%clk 0:00:05]}  Ra8 {[%clk 0:00:05]} 53. Ra2 {[%clk 0:00:05]}  Bf6 {[%clk 0:00:05]} 54. Ke4 {[%clk 0:00:05]}  Ke6 {[%clk 0:00:05]} 55. Kd3 {[%clk 0:00:05]}  c5 {[%clk 0:00:05]} 56. d5+ {[%clk 0:00:04]}  Kd6 {[%clk 0:00:05]} 57. Kc2 {[%clk 0:00:05]}  Bb2 {[%clk 0:00:05]} 58. Kb3 {[%clk 0:00:06]}  b5 {[%clk 0:00:05]} 59. cxb5 {[%clk 0:00:06]}  Kxd5 {[%clk 0:00:06]} 60. b6 {[%clk 0:00:06]}  Rb8 {[%clk 0:00:06]} 61. Ka4 {[%clk 0:00:06]}  Rxb6 {[%clk 0:00:06]} 62. Ka5 {[%clk 0:00:07]}  Rb4 {[%clk 0:00:07]} 63. Ka6 {[%clk 0:00:07]}  Kc4 {[%clk 0:00:07]} 0-1


[Site "https://www.chess.com"]

[Event "Titled Tuesday Blitz March 07 Late 2023"]
[White "Yoo, Christopher Woojin"]
[Black "Samsonkin, Artiom"]
[WhiteFideId "30909694"]
[BlackFideId "13503111"]
[WhiteElo "2519"]
[BlackElo "2524"]
[Result "0-1"]
[Round "10"]
[TimeControl "180+2"]
[Date "2023.03.07"]
[WhiteClock "0:00:02"]
[BlackClock "0:00:03"]

1. Nf3 {[%clk 0:03:00]}  Nf6 {[%clk 0:02:59]} 2. c4 {[%clk 0:03:00]}  e6 {[%clk 0:02:56]} 3. Nc3 {[%clk 0:03:00]}  d5 {[%clk 0:02:50]} 4. e3 {[%clk 0:03:00]}  g6 {[%clk 0:02:49]} 5. d4 {[%clk 0:02:56]}  Bg7 {[%clk 0:02:49]} 6. Qc2 {[%clk 0:02:50]}  O-O {[%clk 0:02:49]} 7. Be2 {[%clk 0:02:48]}  a6 {[%clk 0:02:47]} 8. b3 {[%clk 0:02:32]}  dxc4 {[%clk 0:02:40]} 9. bxc4 {[%clk 0:02:33]}  c5 {[%clk 0:02:40]} 10. O-O {[%clk 0:02:32]}  Nc6 {[%clk 0:02:35]} 11. Rd1 {[%clk 0:02:32]}  cxd4 {[%clk 0:02:27]} 12. exd4 {[%clk 0:02:33]}  Qa5 {[%clk 0:02:09]} 13. Bf4 {[%clk 0:02:08]}  Nh5 {[%clk 0:01:36]} 14. Bd6 {[%clk 0:02:02]}  Rd8 {[%clk 0:01:36]} 15. c5 {[%clk 0:02:01]}  e5 {[%clk 0:01:30]} 16. Nxe5 {[%clk 0:01:21]}  Nxe5 {[%clk 0:01:20]} 17. dxe5 {[%clk 0:01:20]}  Nf4 {[%clk 0:01:09]} 18. Bf3 {[%clk 0:01:12]}  Bf5 {[%clk 0:01:04]} 19. Ne4 {[%clk 0:00:58]}  Rac8 {[%clk 0:00:31]} 20. Rab1 {[%clk 0:00:56]}  Ne6 {[%clk 0:00:23]} 21. Rxb7 {[%clk 0:00:49]}  Bxe4 {[%clk 0:00:18]} 22. Bxe4 {[%clk 0:00:47]}  Nxc5 {[%clk 0:00:15]} 23. Rbb1 {[%clk 0:00:15]}  Na4 {[%clk 0:00:10]} 24. Bb4 {[%clk 0:00:08]}  Rxd1+ {[%clk 0:00:03]} 25. Qxd1 {[%clk 0:00:07]}  Qxe5 {[%clk 0:00:04]} 26. Qxa4 {[%clk 0:00:02]}  Qxe4 {[%clk 0:00:04]} 27. Qxa6 {[%clk 0:00:03]}  Qxb1+ {[%clk 0:00:03]} 28. Qf1 {[%clk 0:00:02]}  Rc1 {[%clk 0:00:03]} 0-1


[Site "https://www.chess.com"]

[Event "Titled Tuesday Blitz March 07 Late 2023"]
[White "Corrales Jimenez, Fidel"]
[Black "Korchmar, Vasiliy"]
[WhiteFideId "3506690"]
[BlackFideId "24131750"]
[WhiteElo "2541"]
[BlackElo "2370"]
[Result "1-0"]
[Round "10"]
[TimeControl "180+2"]
[Date "2023.03.07"]
[WhiteClock "0:02:25"]
[BlackClock "0:00:09"]

1. e4 {[%clk 0:03:00]}  c5 {[%clk 0:02:59]} 2. Nf3 {[%clk 0:02:59]}  d6 {[%clk 0:03:00]} 3. d4 {[%clk 0:02:59]}  cxd4 {[%clk 0:03:01]} 4. Nxd4 {[%clk 0:02:59]}  Nf6 {[%clk 0:03:01]} 5. Nc3 {[%clk 0:03:00]}  Nc6 {[%clk 0:03:02]} 6. Bg5 {[%clk 0:03:00]}  Bd7 {[%clk 0:03:02]} 7. Bc4 {[%clk 0:03:00]}  e6 {[%clk 0:03:00]} 8. Nxc6 {[%clk 0:03:00]}  bxc6 {[%clk 0:02:55]} 9. Qe2 {[%clk 0:03:00]}  Qa5 {[%clk 0:02:49]} 10. Bxf6 {[%clk 0:02:57]}  gxf6 {[%clk 0:02:50]} 11. Bb3 {[%clk 0:02:58]}  h5 {[%clk 0:02:48]} 12. O-O-O {[%clk 0:02:57]}  h4 {[%clk 0:02:31]} 13. Kb1 {[%clk 0:02:52]}  Rb8 {[%clk 0:02:14]} 14. f4 {[%clk 0:02:52]}  Be7 {[%clk 0:02:06]} 15. f5 {[%clk 0:02:52]}  Qe5 {[%clk 0:02:01]} 16. Qa6 {[%clk 0:02:51]}  c5 {[%clk 0:01:21]} 17. Qxa7 {[%clk 0:02:50]}  Rc8 {[%clk 0:01:20]} 18. Ba4 {[%clk 0:02:35]}  Bxa4 {[%clk 0:01:13]} 19. Nxa4 {[%clk 0:02:36]}  Qxe4 {[%clk 0:01:11]} 20. Nb6 {[%clk 0:02:35]}  Rd8 {[%clk 0:01:07]} 21. fxe6 {[%clk 0:02:35]}  fxe6 {[%clk 0:01:07]} 22. Rhe1 {[%clk 0:02:36]}  Qg4 {[%clk 0:00:57]} 23. h3 {[%clk 0:02:35]}  Qf5 {[%clk 0:00:51]} 24. Nd5 {[%clk 0:02:34]}  Rd7 {[%clk 0:00:35]} 25. Qa8+ {[%clk 0:02:33]}  Rd8 {[%clk 0:00:22]} 26. Qb7 {[%clk 0:02:31]}  Rd7 {[%clk 0:00:22]} 27. Qc8+ {[%clk 0:02:31]}  Bd8 {[%clk 0:00:14]} 28. Rxe6+ {[%clk 0:02:25]}  Kf7 {[%clk 0:00:09]} 29. Qxd7+ {[%clk 0:02:25]} 1-0


[Site "https://www.chess.com"]